fUST/lending_fUST_20250924
["ID","MTS","AMOUNT","RATE_DAILY","PERIOD"]
[387214266,1758652247484,-480.0,0.00019452,2]
[387214268,1758652247493,-1235.29,0.00019452,2]
[387214270,1758652247502,-480.0,0.00019452,2]
[387214272,1758652247511,-480.0,0.00019452,2]
[387214274,1758652247520,-480.0,0.00019452,2]
[387214276,1758652247529,-480.0,0.00019452,2]
[387214278,1758652247539,-480.0,0.00019452,2]
[387214280,1758652247548,-480.0,0.00019452,2]
[387214282,1758652247557,-480.0,0.00019452,2]
[387214284,1758652247566,-480.0,0.00019452,2]
[387214285,1758652247575,-480.0,0.00019452,2]
[387214287,1758652247586,-307.00152858,0.00019452,2]
[387214289,1758652247595,-480.0,0.00019452,2]
[387214292,1758652247605,-480.0,0.00019452,2]
[387214294,1758652247614,-480.0,0.00019452,2]
[387214296,1758652247623,-480.0,0.00019452,2]
[387214298,1758652247633,-480.0,0.00019452,2]
[387214300,1758652247643,-500.0,0.00019452,2]
[387214302,1758652247653,-480.0,0.00019452,2]
[387214304,1758652247662,-480.0,0.00019452,2]
[387214306,1758652247672,-480.0,0.00019452,2]
[387214308,1758652247681,-480.0,0.00019452,2]
[387214310,1758652247691,-480.0,0.00019452,2]
[387214312,1758652247700,-227.6028227,0.00019452,2]
[387214314,1758652247709,-480.0,0.00019452,2]
[387214316,1758652247719,-480.0,0.00019452,2]
[387214318,1758652247729,-480.0,0.00019452,2]
[387214320,1758652247738,-480.0,0.00019452,2]
[387214321,1758652247747,-537.67,0.00019452,2]
[387214323,1758652247756,-1800.76,0.00019452,2]
[387214325,1758652247765,-480.0,0.00019452,2]
[387214327,1758652247774,-480.0,0.00019452,2]
[387214329,1758652247784,-2533.4,0.00019452,2]
[387214331,1758652247793,-480.0,0.00019452,2]
[387214333,1758652247802,-480.0,0.00019452,2]
[387214335,1758652247811,-480.0,0.00019452,2]
[387214337,1758652247821,-480.0,0.00019452,2]
[387214339,1758652247830,-480.0,0.00019452,2]
[387214341,1758652247839,-480.0,0.00019452,2]
[387214343,1758652247849,-903.8,0.00019452,2]
[387214345,1758652247858,-480.0,0.00019452,2]
[387214347,1758652247867,-657.2,0.00019452,2]
[387214349,1758652247876,-480.0,0.00019452,2]
[387214351,1758652247886,-869.8,0.00019452,2]
[387214353,1758652247896,-829.42,0.00019452,2]
[387214355,1758652247905,-480.0,0.00019452,2]
[387214357,1758652247914,-480.0,0.00019452,2]
[387214359,1758652247924,-563.46,0.00019452,2]
[387214361,1758652247933,-480.0,0.00019452,2]
[387214363,1758652247943,-480.0,0.00019452,2]
[387214365,1758652247952,-496.89196208,0.00019452,2]
[387214367,1758652247961,-480.0,0.00019452,2]
[387214369,1758652247971,-480.0,0.00019452,2]
[387214371,1758652247980,-480.0,0.00019452,2]
[387214373,1758652247989,-480.0,0.00019452,2]
[387214375,1758652248000,-480.0,0.00019452,2]
[387214377,1758652248010,-480.0,0.00019452,2]
[387214379,1758652248020,-590.71,0.00019452,2]
[387214381,1758652248031,-1800.65,0.00019452,2]
[387214383,1758652248041,-480.0,0.00019452,2]
[387214385,1758652248052,-3437.33,0.00019452,2]
[387214387,1758652248062,-653.0,0.00019452,2]
[387214389,1758652248072,-480.0,0.00019452,2]
[387214391,1758652248082,-912.79,0.00019452,2]
[387214393,1758652248092,-876.06,0.00019452,2]
[387214395,1758652248103,-703.32,0.00019452,2]
[387214397,1758652248114,-480.0,0.00019452,2]
[387214399,1758652248123,-480.0,0.00019452,2]
[387214401,1758652248133,-480.0,0.00019452,2]
[387214403,1758652248148,-480.0,0.00019452,2]
[387214405,1758652248157,-480.0,0.00019452,2]
[387214407,1758652248166,-1514.02,0.00019452,2]
[387214409,1758652248176,-480.0,0.00019452,2]
[387214410,1758652248186,-480.0,0.00019452,2]
[387214412,1758652248195,-480.0,0.00019452,2]
[387214414,1758652248206,-604.65,0.00019452,2]
[387214417,1758652248216,-1003.11,0.00019452,2]
[387214419,1758652248226,-699.01,0.00019452,2]
[387214421,1758652248235,-480.0,0.00019452,2]
[387214423,1758652248245,-480.0,0.00019452,2]
[387214425,1758652248255,-480.0,0.00019452,2]
[387214427,1758652248264,-480.0,0.00019452,2]
[387214429,1758652248274,-480.0,0.00019452,2]
[387214431,1758652248284,-480.0,0.00019452,2]
[387214433,1758652248293,-480.0,0.00019452,2]
[387214435,1758652248302,-480.0,0.00019452,2]
[387214437,1758652248312,-573.34543065,0.00019452,2]
[387214439,1758652248321,-480.0,0.00019452,2]
[387214441,1758652248330,-482.08442147,0.00019452,2]
[387214443,1758652248339,-480.0,0.00019452,2]
[387214444,1758652248348,-151.0,0.00019452,2]
[387214447,1758652248359,-520.1953788,0.00019452,2]
[387214448,1758652248368,-301.59692712,0.00019489,2]
[387214450,1758652248378,-301.59692712,0.00019626,2]
[387214453,1758652248389,-500.0,0.0001969,2]
[387214454,1758652248399,-651.0,0.000197,2]
[387214456,1758652248408,-308.60115361,0.00019705,2]
[387214458,1758652248417,-568.83,0.0001972,2]
[387214460,1758652248427,-500.0,0.00019721,2]
[387214462,1758652248438,-1000.0,0.00019721,2]
[387214464,1758652248447,-500.0,0.00019721,2]
[387214466,1758652248457,-1000.0,0.00019721,2]
[387214468,1758652248467,-1000.0,0.00019721,2]
[387214470,1758652248476,-1000.0,0.00019721,2]
[387214472,1758652248485,-500.0,0.00019721,2]
[387214474,1758652248494,-1000.0,0.00019721,2]
[387214476,1758652248506,-500.0,0.00019725,2]
[387214479,1758652248515,-500.0,0.00019725,2]
[387214481,1758652248526,-500.0,0.00019725,2]
[387214482,1758652248535,-568.83,0.00019725,2]
[387214484,1758652248545,-568.83,0.00019725,2]
[387214486,1758652248555,-568.83,0.00019725,2]
[387214488,1758652248564,-568.83,0.00019725,2]
[387214490,1758652248574,-568.87,0.00019725,2]
[387214492,1758652248584,-3154.4,0.00019725,2]
[387214494,1758652248593,-3154.4,0.00019725,2]
[387214496,1758652248603,-3154.4,0.00019725,2]
[387214498,1758652248612,-3154.4,0.00019725,2]
[387214500,1758652248621,-3154.55887823,0.00019725,2]
[387214502,1758652248631,-500.0,0.00019725,2]
[387214504,1758652248641,-500.0,0.00019725,2]
[387214506,1758652248651,-500.0,0.00019725,2]
[387214508,1758652248661,-480.0,0.00019726,2]
[387214510,1758652248671,-480.0,0.00019726,2]
[387214512,1758652248680,-197.44987018,0.00019726,2]
[387214514,1758652248690,-480.0,0.00019726,2]
[387214516,1758652248700,-480.0,0.00019726,2]
[387214518,1758652248709,-480.0,0.00019726,2]
[387214520,1758652248719,-480.0,0.00019726,2]
[387214522,1758652248728,-1235.29,0.00019726,2]
[387214524,1758652248737,-480.0,0.00019726,2]
[387214526,1758652248747,-480.0,0.00019726,2]
[387214528,1758652248758,-429.83610051,0.00019726,2]
[387214530,1758652248768,-480.0,0.00019726,2]
[387214532,1758652248778,-480.0,0.00019726,2]
[387214542,1758652248879,-480.0,0.00019726,2]
[387214543,1758652248889,-480.0,0.00019726,2]
[387214544,1758652248899,-480.0,0.00019726,2]
[387214545,1758652248909,-448.72072842,0.00019726,2]
[387214546,1758652248919,-480.0,0.00019726,2]
[387214547,1758652248929,-480.0,0.00019726,2]
[387214548,1758652248938,-480.0,0.00019726,2]
[387214549,1758652248948,-537.67,0.00019726,2]
[387214550,1758652248957,-1800.76,0.00019726,2]
[387214551,1758652248967,-480.0,0.00019726,2]
[387214553,1758652248976,-480.0,0.00019726,2]
[387214555,1758652248987,-2533.4,0.00019726,2]
[387214557,1758652248996,-480.0,0.00019726,2]
[387214559,1758652249007,-338.67,0.00019726,2]
[387214562,1758652249016,-480.0,0.00019726,2]
[387214564,1758652249026,-480.0,0.00019726,2]
[387214566,1758652249035,-480.0,0.00019726,2]
[387214568,1758652249046,-903.8,0.00019726,2]
[387214570,1758652249056,-480.0,0.00019726,2]
[387214572,1758652249065,-657.2,0.00019726,2]
[387214574,1758652249075,-480.0,0.00019726,2]
[387214576,1758652249084,-869.8,0.00019726,2]
[387214578,1758652249094,-829.42,0.00019726,2]
[387214579,1758652249108,-480.0,0.00019726,2]
[387214582,1758652249121,-548.91,0.00019726,2]
[387214584,1758652249131,-563.46,0.00019726,2]
[387214586,1758652249141,-480.0,0.00019726,2]
[387214588,1758652249151,-480.0,0.00019726,2]
[387214590,1758652249162,-480.0,0.00019726,2]
[387214592,1758652249172,-480.0,0.00019726,2]
[387214594,1758652249183,-480.0,0.00019726,2]
[387214596,1758652249192,-480.0,0.00019726,2]
[387214598,1758652249203,-480.0,0.00019726,2]
[387214600,1758652249212,-480.0,0.00019726,2]
[387214602,1758652249222,-590.71,0.00019726,2]
[387214604,1758652249231,-1800.65,0.00019726,2]
[387214606,1758652249241,-480.0,0.00019726,2]
[387214608,1758652249250,-3437.33,0.00019726,2]
[387214610,1758652249262,-653.0,0.00019726,2]
[387214612,1758652249271,-480.0,0.00019726,2]
[387214614,1758652249281,-912.79,0.00019726,2]
[387214617,1758652249292,-703.32,0.00019726,2]
[387214618,1758652249301,-876.06,0.00019726,2]
[387214620,1758652249311,-480.0,0.00019726,2]
[387214622,1758652249320,-480.0,0.00019726,2]
[387214624,1758652249330,-480.0,0.00019726,2]
[387214626,1758652249340,-480.0,0.00019726,2]
[387214628,1758652249349,-480.0,0.00019726,2]
[387214630,1758652249359,-1514.02,0.00019726,2]
[387214632,1758652249370,-480.0,0.00019726,2]
[387214635,1758652249380,-480.0,0.00019726,2]
[387214637,1758652249389,-604.65,0.00019726,2]
[387214639,1758652249399,-1003.11,0.00019726,2]
[387214641,1758652249409,-699.01,0.00019726,2]
[387214643,1758652249418,-480.0,0.00019726,2]
[387214645,1758652249428,-480.0,0.00019726,2]
[387214647,1758652249437,-480.0,0.00019726,2]
[387214649,1758652249446,-480.0,0.00019726,2]
[387214651,1758652249456,-480.0,0.00019726,2]
[387214653,1758652249466,-480.0,0.00019726,2]
[387214655,1758652249475,-480.0,0.00019726,2]
[387214657,1758652249485,-480.0,0.00019726,2]
[387214659,1758652249494,-262.0,0.00019753,3]
[387214661,1758652249503,-500.0,0.00019899,2]
[387214663,1758652249513,-4817.03908473,0.000199,2]
[387214665,1758652249523,-267.0,0.00019937,2]
[387214667,1758652249532,-507.47765638,0.00019973,2]
[387214669,1758652249541,-275.72,0.00019999,2]
[387214671,1758652249550,-500.0,0.00019999,2]
[387214673,1758652249560,-500.0,0.00019999,2]
[387214675,1758652249569,-500.0,0.00019999,2]
[387214677,1758652249579,-22562.20083468,0.0002,2]
[387214680,1758652249595,-3930.16232786,0.0002,2]
[387214682,1758652249608,-21540.57502394,0.0002,2]
[387214684,1758652249618,-207.0,0.0002,10]
[387214686,1758652249627,-222.53119266,0.0002,2]
[387214688,1758652249638,-277.0,0.0002,2]
[387214690,1758652249647,-480.0,0.0002,2]
[387214692,1758652249657,-480.0,0.0002,2]
[387214694,1758652249667,-480.0,0.0002,2]
[387214696,1758652249677,-480.0,0.0002,2]
[387214698,1758652249686,-1235.29,0.0002,2]
[387214700,1758652249696,-480.0,0.0002,2]
[387214702,1758652249705,-480.0,0.0002,2]
[387214704,1758652249715,-480.0,0.0002,2]
[387214706,1758652249724,-395.94634724,0.0002,2]
[387214708,1758652249734,-151.0,0.0002,2]
[387214710,1758652249743,-480.0,0.0002,2]
[387214712,1758652249753,-480.0,0.0002,2]
[387214714,1758652249763,-451.662661,0.0002,10]
[387214716,1758652249774,-480.0,0.0002,2]
[387214718,1758652249784,-454.10116043,0.0002,2]
[387214720,1758652249794,-480.0,0.0002,2]
[387214722,1758652249803,-537.67,0.0002,2]
[387214724,1758652249814,-174.511,0.0002,2]
[387214726,1758652249824,-1800.76,0.0002,2]
[387214728,1758652249834,-150.2454,0.0002,2]
[387214730,1758652249844,-480.0,0.0002,2]
[387214732,1758652249853,-480.0,0.0002,2]
[387214734,1758652249863,-2533.4,0.0002,2]
[387214736,1758652249872,-480.0,0.0002,2]
[387214738,1758652249882,-480.0,0.0002,2]
[387214740,1758652249893,-480.0,0.0002,2]
[387214742,1758652249903,-492.01912991,0.0002,2]
[387214744,1758652249914,-903.8,0.0002,2]
[387214746,1758652249924,-480.0,0.0002,2]
[387214748,1758652249936,-657.2,0.0002,2]
[387214750,1758652249946,-480.0,0.0002,2]
[387214752,1758652249956,-869.8,0.0002,2]
[387214754,1758652249965,-829.42,0.0002,2]
[387214756,1758652249975,-151.0,0.0002,2]
[387214758,1758652249984,-151.0,0.0002,2]
[387214760,1758652249993,-151.0,0.0002,2]
[387214762,1758652250004,-480.0,0.0002,2]
[387214764,1758652250014,-563.46,0.0002,2]
[387214767,1758652250024,-480.0,0.0002,2]
[387214769,1758652250034,-480.0,0.0002,2]
[387214771,1758652250044,-480.0,0.0002,2]
[387214773,1758652250054,-480.0,0.0002,2]
[387214775,1758652250064,-480.0,0.0002,2]
[387214777,1758652250073,-480.0,0.0002,2]
[387214779,1758652250083,-480.0,0.0002,2]
[387214781,1758652250092,-480.0,0.0002,2]
[387214783,1758652250104,-590.71,0.0002,2]
[387214785,1758652250114,-1800.65,0.0002,2]
[387214787,1758652250123,-480.0,0.0002,2]
[387214789,1758652250133,-3437.33,0.0002,2]
[387214791,1758652250143,-653.0,0.0002,2]
[387214793,1758652250152,-480.0,0.0002,2]
[387214795,1758652250162,-912.79,0.0002,2]
[387214797,1758652250171,-703.32,0.0002,2]
[387214799,1758652250182,-876.06,0.0002,2]
[387214801,1758652250192,-202.22186805,0.0002,2]
[387214803,1758652250201,-480.0,0.0002,2]
[387214805,1758652250210,-480.0,0.0002,2]
[387214807,1758652250219,-480.0,0.0002,2]
[387214809,1758652250228,-1514.02,0.0002,2]
[387214811,1758652250237,-480.0,0.0002,2]
[387214813,1758652250247,-480.0,0.0002,2]
[387214815,1758652250256,-604.65,0.0002,2]
[387214817,1758652250265,-500.0,0.0002,2]
[387214819,1758652250274,-1003.11,0.0002,2]
[387214821,1758652250284,-151.0,0.0002,2]
[387214823,1758652250293,-151.0,0.0002,2]
[387214825,1758652250303,-699.01,0.0002,2]
[387214827,1758652250312,-480.0,0.0002,2]
[387214829,1758652250322,-480.0,0.0002,2]
[387214831,1758652250331,-480.0,0.0002,2]
[387214833,1758652250341,-480.0,0.0002,2]
[387214835,1758652250350,-480.0,0.0002,2]
[387214837,1758652250359,-480.0,0.0002,2]
[387214839,1758652250368,-480.0,0.0002,2]
[387214841,1758652250377,-510.55,0.0002,2]
[387214843,1758652250387,-151.0,0.0002,2]
[387214845,1758652250397,-501.64926555,0.0002002,2]
[387214847,1758652250406,-160.0,0.0002002,2]
[387214849,1758652250416,-321.0,0.00020116,2]
[387214851,1758652250425,-160.0,0.00020179,2]
[387214853,1758652250435,-160.0,0.00020179,2]
[387214855,1758652250444,-160.0,0.00020179,2]
[387214857,1758652250453,-233.58652103,0.00020179,2]
[387214859,1758652250464,-160.0,0.00020179,2]
[387214861,1758652250473,-160.0,0.00020179,2]
[387214863,1758652250482,-417.15472785,0.00020179,2]
[387214865,1758652250492,-160.0,0.00020179,2]
[387214867,1758652250501,-40373.32137424,0.000202,2]
[387214880,1758652250614,5000.0,0.0002011,13]
[387214884,1758652250635,-549.15053191,0.00019177,2]
[387214886,1758652250645,-153.94946809,0.00019178,2]
[387214888,1758652250658,-326.05053191,0.00019178,2]
[387214890,1758652250666,-208.35943756,0.000202,2]
[387215293,1758652254947,5000.0,0.0002011,13]
[387216262,1758652295784,255.8234364,0.00018451,120]
[387216276,1758652368998,300.0,0.00027397,120]
[387216278,1758652503100,175.25378605,0.00029286,60]
[387216279,1758652537120,201.0,0.00020535,120]
[387216280,1758652538426,201.0,0.00021562,120]
[387216281,1758652539702,201.0,0.0002264,120]
[387216282,1758652541035,201.0,0.00023772,120]
[387216283,1758652542449,201.0,0.00024961,120]
[387216284,1758652543775,201.0,0.00026209,120]
[387216289,1758652686255,300.0,0.00027397,120]
[387216291,1758652841657,162.0,0.00020602,120]
[387216292,1758652843045,162.0,0.00021632,120]
[387216293,1758652844542,162.0,0.00022714,120]
[387216294,1758652845791,162.0,0.0002385,120]
[387216295,1758652847619,162.0,0.00025042,120]
[387216296,1758652892221,8478.68603621,0.00029287,60]
[387216300,1758653250799,5000.0,0.00029287,80]
[387216301,1758653302242,759.546145,0.00027397,120]
[387216302,1758653428681,800.0,0.0002739,120]
[387216307,1758653432269,-182.85344067,0.00019078,2]
[387216308,1758653432280,-476.32155611,0.00019078,2]
[387216310,1758653432290,-429.0,0.00019165,2]
[387216311,1758653432300,-300.0,0.00019165,2]
[387216312,1758653432310,-1017.0,0.00019165,2]
[387216313,1758653432320,-151.0,0.00019166,2]
[387216314,1758653432331,-500.0,0.00019166,2]
[387216315,1758653432340,-500.0,0.00019166,2]
[387216316,1758653432351,-500.0,0.00019166,2]
[387216317,1758653432360,-500.0,0.00019166,2]
[387216319,1758653432370,-500.0,0.00019166,2]
[387216321,1758653432379,-500.0,0.00019166,2]
[387216323,1758653432388,-500.0,0.00019166,2]
[387216324,1758653432397,-1358.94,0.00019168,3]
[387216325,1758653432406,-679.47,0.00019168,3]
[387216326,1758653432416,-339.74,0.00019168,3]
[387216327,1758653432429,-283.11,0.00019168,3]
[387216328,1758653432438,-849.38,0.00019168,3]
[387216329,1758653432447,-1000.0,0.00019177,2]
[387216330,1758653432456,-1000.0,0.00019177,2]
[387216332,1758653432465,-1000.0,0.00019177,2]
[387216334,1758653432474,-1000.0,0.00019177,2]
[387216336,1758653432488,-1000.0,0.00019177,2]
[387216338,1758653432497,-1000.0,0.00019177,2]
[387216340,1758653432506,-500.0,0.00019177,2]
[387216342,1758653432516,-307.25770874,0.00019177,2]
[387216343,1758653432528,-260.37106807,0.00019177,2]
[387216344,1758653432537,-500.0,0.00019177,2]
[387216346,1758653432547,-197.03138568,0.00019177,2]
[387216348,1758653432558,-211.5345981,0.00019177,2]
[387216350,1758653432568,-480.0,0.00019178,2]
[387216352,1758653432578,-480.0,0.00019178,2]
[387216353,1758653432588,-480.0,0.00019178,2]
[387216355,1758653432596,-480.0,0.00019178,2]
[387216357,1758653432606,-480.0,0.00019178,2]
[387216359,1758653432615,-480.0,0.00019178,2]
[387216361,1758653432624,-480.0,0.00019178,2]
[387216362,1758653432633,-480.0,0.00019178,2]
[387216364,1758653432643,-445.42286682,0.00019178,2]
[387216366,1758653432652,-480.0,0.00019178,2]
[387216368,1758653432662,-480.0,0.00019178,2]
[387216370,1758653432671,-480.0,0.00019178,2]
[387216372,1758653432681,-480.0,0.00019178,2]
[387216374,1758653432690,-480.0,0.00019178,2]
[387216376,1758653432700,-480.0,0.00019178,2]
[387216378,1758653432709,-480.0,0.00019178,2]
[387216379,1758653432718,-480.0,0.00019178,2]
[387216381,1758653432728,-480.0,0.00019178,2]
[387216383,1758653432737,-480.0,0.00019178,2]
[387216385,1758653432746,-328.78798777,0.00019178,2]
[387216387,1758653432755,-480.0,0.00019178,2]
[387216389,1758653432764,-480.0,0.00019178,2]
[387216391,1758653432773,-480.0,0.00019178,2]
[387216393,1758653432783,-480.0,0.00019178,2]
[387216395,1758653432792,-482.60762343,0.00019178,2]
[387216398,1758653432801,-480.0,0.00019178,2]
[387216401,1758653432810,-480.0,0.00019178,2]
[387216404,1758653432820,-480.0,0.00019178,2]
[387216407,1758653432829,-486.41493986,0.00019178,2]
[387216410,1758653432839,-480.0,0.00019178,2]
[387216413,1758653432848,-481.27927092,0.00019178,2]
[387216416,1758653432859,-487.75492378,0.00019178,2]
[387216419,1758653432868,-175.60258628,0.00019178,2]
[387216422,1758653432878,-521.60334919,0.00019178,3]
[387216425,1758653432887,-480.0,0.00019178,2]
[387216428,1758653432897,-484.34810915,0.00019178,2]
[387216431,1758653432907,-480.0,0.00019178,2]
[387216434,1758653432916,-480.0,0.00019178,2]
[387216437,1758653432926,-480.0,0.00019178,2]
[387216440,1758653432936,-480.0,0.00019178,2]
[387216443,1758653432945,-500.0,0.00019178,2]
[387216446,1758653432954,-480.0,0.00019178,2]
[387216449,1758653432964,-480.0,0.00019178,2]
[387216452,1758653432973,-480.0,0.00019178,2]
[387216455,1758653432983,-480.0,0.00019178,2]
[387216458,1758653432992,-480.0,0.00019178,2]
[387216461,1758653433001,-485.63290712,0.00019178,2]
[387216464,1758653433010,-480.0,0.00019178,2]
[387216466,1758653433020,-480.0,0.00019178,2]
[387216469,1758653433030,-480.0,0.00019178,2]
[387216472,1758653433039,-480.0,0.00019178,2]
[387216474,1758653433049,-480.0,0.00019178,2]
[387216476,1758653433058,-480.0,0.00019178,2]
[387216478,1758653433069,-486.25437665,0.00019178,2]
[387216480,1758653433079,-480.0,0.00019178,2]
[387216482,1758653433088,-518.82906721,0.00019178,2]
[387216485,1758653433099,-584.24991752,0.00019178,2]
[387216487,1758653433110,-501.06069573,0.00019178,2]
[387216489,1758653433119,-480.0,0.00019178,2]
[387216490,1758653433129,-480.0,0.00019178,2]
[387216492,1758653433139,-480.0,0.00019178,2]
[387216494,1758653433149,-480.0,0.00019178,2]
[387216496,1758653433159,-480.0,0.00019178,2]
[387216498,1758653433170,-480.0,0.00019178,2]
[387216501,1758653433181,-480.0,0.00019178,2]
[387216503,1758653433192,-480.0,0.00019178,2]
[387216505,1758653433202,-394.08622786,0.00019178,2]
[387216507,1758653433211,-279.4031965,0.00019178,2]
[387216509,1758653433221,-480.0,0.00019178,2]
[387216511,1758653433230,-480.0,0.00019178,2]
[387216512,1758653433240,-356.22461753,0.00019178,2]
[387216515,1758653433250,-489.23846747,0.00019178,2]
[387216518,1758653433270,-480.0,0.00019178,2]
[387216519,1758653433279,-480.0,0.00019178,2]
[387216522,1758653433290,-497.69115979,0.00019178,2]
[387216523,1758653433299,-480.0,0.00019178,2]
[387216525,1758653433310,-480.0,0.00019178,2]
[387216528,1758653433320,-480.0,0.00019178,2]
[387216530,1758653433330,-480.0,0.00019178,2]
[387216532,1758653433339,-480.0,0.00019178,2]
[387216534,1758653433350,-480.0,0.00019178,2]
[387216536,1758653433360,-480.0,0.00019178,2]
[387216538,1758653433370,-480.0,0.00019178,2]
[387216540,1758653433380,-480.0,0.00019178,2]
[387216542,1758653433390,-480.0,0.00019178,2]
[387216544,1758653433399,-480.0,0.00019178,2]
[387216546,1758653433409,-480.0,0.00019178,2]
[387216548,1758653433418,-480.0,0.00019178,2]
[387216550,1758653433429,-480.0,0.00019178,2]
[387216552,1758653433439,-480.0,0.00019178,2]
[387216554,1758653433448,-480.0,0.00019178,2]
[387216556,1758653433458,-480.0,0.00019178,2]
[387216558,1758653433468,-480.0,0.00019178,2]
[387216559,1758653433479,-463.47248604,0.00019178,2]
[387216561,1758653433491,-480.0,0.00019178,2]
[387216563,1758653433501,-480.0,0.00019178,2]
[387216565,1758653433511,-480.0,0.00019178,2]
[387216567,1758653433520,-480.0,0.00019178,2]
[387216569,1758653433530,-480.0,0.00019178,2]
[387216571,1758653433540,-480.0,0.00019178,2]
[387216573,1758653433550,-480.0,0.00019178,2]
[387216575,1758653433560,-480.0,0.00019178,2]
[387216577,1758653433570,-203.26465016,0.00019178,2]
[387216579,1758653433579,-480.0,0.00019178,2]
[387216581,1758653433588,-480.0,0.00019178,2]
[387216583,1758653433598,-225.30129456,0.00019178,2]
[387216585,1758653433607,-175.49809788,0.00019178,2]
[387216587,1758653433617,-480.0,0.00019178,2]
[387216589,1758653433627,-491.79404082,0.00019178,2]
[387216591,1758653433637,-480.0,0.00019178,2]
[387216593,1758653433646,-192.5772934,0.00019178,2]
[387216595,1758653433655,-211.81346575,0.00019178,2]
[387216597,1758653433665,-480.0,0.00019178,2]
[387216599,1758653433675,-491.73271233,0.00019178,2]
[387216601,1758653433684,-480.0,0.00019178,2]
[387216603,1758653433693,-480.0,0.00019178,2]
[387216605,1758653433703,-480.0,0.00019178,2]
[387216607,1758653433712,-480.0,0.00019178,2]
[387216609,1758653433721,-605.09028371,0.00019178,2]
[387216611,1758653433731,-480.0,0.00019178,2]
[387216613,1758653433740,-480.0,0.00019178,2]
[387216615,1758653433749,-480.0,0.00019178,2]
[387216617,1758653433758,-480.0,0.00019178,2]
[387216619,1758653433768,-480.0,0.00019178,2]
[387216621,1758653433777,-480.0,0.00019178,2]
[387216623,1758653433787,-480.0,0.00019178,2]
[387216625,1758653433797,-480.0,0.00019178,2]
[387216626,1758653433806,-480.0,0.00019178,2]
[387216628,1758653433815,-480.0,0.00019178,2]
[387216631,1758653433825,-480.0,0.00019178,2]
[387216633,1758653433835,-480.0,0.00019178,2]
[387216634,1758653433844,-483.11803653,0.00019178,2]
[387216637,1758653433855,-480.0,0.00019178,2]
[387216639,1758653433864,-480.0,0.00019178,2]
[387216641,1758653433874,-484.06165734,0.00019178,2]
[387216643,1758653433883,-480.0,0.00019178,2]
[387216645,1758653433893,-483.5946361,0.00019178,2]
[387216646,1758653433904,-480.0,0.00019178,2]
[387216648,1758653433914,-480.0,0.00019178,2]
[387216649,1758653433924,-480.0,0.00019178,2]
[387216650,1758653433934,-480.0,0.00019178,2]
[387216651,1758653433944,-480.0,0.00019178,2]
[387216652,1758653433954,-480.0,0.00019178,2]
[387216653,1758653433964,-480.0,0.00019178,2]